Cogmind - Beta 17.1 @@@ ROGUE MODE // 2026.09.09 @ 05:59:44 Player: rootmos Result: Destroyed by Y-45 Defender with Beam Rifle Performance ------------- Evolutions (2) 1000 Regions Visited (3) 600 Robots Destroyed (45) 225 Value Destroyed (1528) 1528 Prototype IDs (2) 40 Alien Tech Used (0) 0 Bonus (0) 0 TOTAL SCORE: 3393 Bonus ------- None Cogmind --------- Core Integrity 0/550 Matter 197/300 Energy 100/100 System Corruption 0% Temperature Cool (9) Movement Core (100) Ox1 Location -8/Materials Parts ------- > --- POWER (2) -------- (None) > --- PROPULSION (2) --- (None) > --- UTILITY (4) ------ Improved Utility Shielding Improved Utility Shielding > --- WEAPON (3) ------- (None) > --- INVENTORY (5) ---- Carbon-fiber Leg Carbon-fiber Leg Peak State ------------ > --- POWER ------------ Improved Ion Engine > --- PROPULSION ------- Carbon-fiber Leg Carbon-fiber Leg > --- UTILITY ---------- Heat Sink Light Armor Plating Light Armor Plating High-powered Tractor Beam > --- WEAPON ----------- Small Laser Beam Rifle Heavy Assault Rifle > --- INVENTORY -------- Light Treads Light Treads Carbon-fiber Leg Carbon-fiber Leg [Rating: 19] Favorites ----------- Power Light Nuclear Core Engine Improved Ion Engine Power Core Light Nuclear Core Propulsion Light Treads Treads Light Treads Leg Carbon-fiber Leg Utility Power Shielding Device Heat Sink Storage Small Storage Unit Protection Power Shielding Weapon Shotgun Energy Gun Beam Rifle Energy Cannon Beam Cannon Ballistic Gun Shotgun Launcher Rocket Launcher Build | -11 -10 -9 -8 ------- Run | Yrd Mat Mat Mat Slots Evolved 4 | . . 2 2 Power 1 | . . . 1 Propulsion . | . . . . Utility 2 | . . 1 1 Weapon 1 | . . 1 . Parts Attached 49 | . 19 23 7 Power 5 | . 4 1 . Engine 3 | . 2 1 . Core 2 | . 2 . . Reactor . | . . . . Propulsion 14 | . 5 7 2 Treads 8 | . 5 1 2 Leg 6 | . . 6 . Wheel . | . . . . Hover . | . . . . Flight . | . . . . Utility 18 | . 7 7 4 Device 6 | . 3 1 2 Storage 2 | . 2 . . Processor . | . . . . Hackware . | . . . . Protection 10 | . 2 6 2 Artifact . | . . . . Weapon 12 | . 3 8 1 Energy Gun 5 | . . 5 . Energy Cannon 2 | . 1 . 1 Ballistic Gun 4 | . 2 2 . Ballistic Cannon . | . . . . Launcher 1 | . . 1 . Special Weapon . | . . . . Impact Weapon . | . . . . Slashing Weapon . | . . . . Piercing Weapon . | . . . . Special Melee Weapon . | . . . . Unidentified Prototypes . | . . . . Corrupted Parts 1 | . . 1 . System Corruption 3 | . . 3 . Parts Lost 16 | . . 4 12 Power 2 | . . 1 1 Propulsion 4 | . . . 4 Utility 3 | . . . 3 Weapon 7 | . . 3 4 Highest Loss Streak 8 | . . 2 8 To Critical Strikes . | . . . . Average Backups 4 | 6 5 4 3 Power . | 1 . . . Propulsion 2 | 4 2 2 3 Utility . | . . 1 . Weapon . | 1 1 . . Tool/Special . | . . . . Unused Backups 16 | . 11 3 2 Power 2 | . 2 . . Propulsion 8 | . 6 . 2 Utility 3 | . 1 2 . Weapon 3 | . 2 1 . Tool/Special . | . . . . Average Slot Usage (%) 95 | . 97 97 65 Engine 5 | . 7 3 5 Core 6 | . 6 7 . Treads 17 | . 26 12 4 Leg 6 | . 1 9 10 Device 10 | . 11 9 10 Storage 1 | . 3 . . Protection 17 | . 10 21 19 Energy Gun 11 | . 6 15 9 Energy Cannon 3 | . 7 . 1 Ballistic Gun 11 | . 14 10 5 Launcher 2 | . . 5 . Peak Build Rating 19 | 6 9 16 19 Average Rating 11 | 6 7 14 14 On Entrance 9 | 6 6 9 16 Avg Prop Armor Cover (%) 8 | . . 8 . Naked Turns . | . . . . Heaviest Build 23 | 11 13 23 23 Greatest Support 40 | 20 40 40 40 Greatest Overweight (x) 3 | . . 2 3 Average Overweight (x) . | . . . . Largest Inventory Capacity 25 | 8 25 5 5 Average Capacity 5 | 8 5 5 5 Most Carried 8 | 6 8 5 4 Average Carried 5 | 6 5 4 3 Final Capacity 8 | 8 5 5 5 Final Carried 6 | 6 5 5 2 Class Distribution -------------------- 46% | Mutant 40% | Tank 13% | Scavenger-Tank Dominant Class ---------------- Mutant | -10/Materials Tank | -9/Materials Mutant | -8/Materials Resources | -11 -10 -9 -8 ----------- Run | Yrd Mat Mat Mat Matter Collected 1104 | 200 373 531 . Remotely . | . . . . Salvage Created 1803 | . 734 908 161 Parts 101 | . 41 53 7 Haulers Intercepted . | . . . . Recyclers Shooed 2 | . 2 . . Parts Field Recycled . | . . . . Retrieved Matter . | . . . . Parts Self-Destructed . | . . . . Prevented . | . . . . Parts Restored . | . . . . Kills | -11 -10 -9 -8 ------- Run | Yrd Mat Mat Mat Combat Hostiles Destroyed 45 | . 19 22 4 Guns 31 | . 8 21 2 Cannons 12 | . 11 . 1 AOE 1 | . . 1 . Classes Destroyed 3 | . 2 1 . Swarmer 6 | . 3 2 1 Grunt 35 | . 16 16 3 Sentry 4 | . . 4 . Best Kill Streak 4 | . 2 4 2 Combat Bots Only 4 | . 2 4 2 Max Kills in Single Turn 2 | . 1 2 1 Gunslinging 1 | . . 1 . Exploded 1 | . . 1 . Melee . | . . . . Uniques/NPCs Destroyed . | . . . . Combat | -11 -10 -9 -8 -------- Run | Yrd Mat Mat Mat Hostile Shots Fired 365 | . 80 98 187 Missed 104 | . 28 21 55 Hits 261 | . 52 77 132 Projectile 261 | . 52 77 132 Critical Strikes 5 | . 3 . 2 Actively Blocked 1 | . 1 . . Damage Taken 3333 | . 667 941 1725 Core 781 | . 102 120 559 Absorbed by Shields . | . . . . Redirected to Shielding 92 | . 42 32 18 Regen/Repaired (Parts) 31 | . . 31 . Core Remaining (%) 76 | 100 59 70 . Volleys Fired 131 | . 48 54 29 Largest 3 | . 2 3 3 Hottest 124 | . 80 124 119 Shots Fired 281 | . 96 132 53 Gun 242 | . 65 130 47 Cannon 37 | . 31 . 6 Launcher 2 | . . 2 . Special . | . . . . Kinetic 126 | . 48 55 23 Thermal 95 | . 31 34 30 Explosive 2 | . . 2 . Electromagnetic 58 | . 17 41 . Robot Hit Streak 26 | . 26 14 7 Robot Miss Streak 3 | . 2 3 3 Penetration Max . | . . . . Secondary Targets 5 | . . 4 1 Max Gunslinging Chain 1 | . . 1 1 Shots Hit Robots 191 | . 63 98 30 Core Hits 80 | . 30 40 10 Critical Kills . | . . . . Critical Parts Destroyed 1 | . 1 . . Critical Strikes 5 | . 2 2 1 Burn 3 | . . 2 1 Destroy 1 | . 1 . . Corrupt 1 | . 1 . . Melee Attacks . | . . . . Impact . | . . . . Slashing . | . . . . Piercing . | . . . . Sneak Attacks . | . . . . Combat Hostiles . | . . . . Follow-up Attacks . | . . . . Damage Inflicted 2880 | . 958 1421 501 Guns 2313 | . 529 1374 410 Cannons 494 | . 403 . 91 Explosions 73 | . 26 47 . Melee . | . . . . Ramming . | . . . . Kinetic 1188 | . 348 603 237 Thermal 991 | . 429 298 264 Explosive 17 | . . 17 . Electromagnetic 684 | . 181 503 . Impact . | . . . . Slashing . | . . . . Piercing . | . . . . Highest Corruption 4 | . 4 3 . Average Corruption 3 | . 3 3 . Corruption Purged . | . . . . Corruption Blocked . | . . . . Effects 31 | . 20 11 . Message Errors 8 | . 5 3 . Matter Fused 6 | . 3 3 . Heat Flow Errors 2 | . 1 1 . Energy Discharges 5 | . 4 1 . Parts Rejected 1 | . 1 . . Parts Fused 1 | . 1 . . Data Loss (minor) 5 | . 4 1 . Data Loss (major) 1 | . 1 . . Misfires 1 | . . 1 . Weapon Failures 1 | . . 1 . Overload Shots . | . . . . Overflow Damage 2 | . . . 2 Projectiles 2 | . . . 2 Explosions . | . . . . Melee . | . . . . Knockbacks . | . . . . Impact . | . . . . Kinetic . | . . . . Secondary . | . . . . Self-Inflicted Damage 40 | . 27 13 . Shots 2 | . 1 1 . Rammed . | . . . . Targets Rammed . | . . . . Kicked . | . . . . Crushed . | . . . . Highest Temperature 550 | . 167 550 384 Average Temperature 115 | . 36 130 161 Received Heat Transfer 1266 | . 369 384 513 Effects 11 | . . 10 1 Shutdowns 1 | . . 1 . Energy Bleed 1 | . . 1 . Interference 4 | . . 3 1 Matter Decay 1 | . . 1 . Damage (minor) 2 | . . 2 . Damage (major) 2 | . . 2 . Siege Activations . | . . . . Martial Activations . | . . . . Shielding Activations . | . . . . Robots Disrupted . | . . . . Combat Hostiles . | . . . . Robots Corrupted . | . . . . Combat Hostiles . | . . . . Parts Fried 1 | . . 1 . Impact Corruptions . | . . . . Robots Melted 1 | . . . 1 Combat Hostiles 1 | . . . 1 Parts Melted . | . . . . Heat Transferred 2371 | . 901 815 655 Parts Sabotaged . | . . . . Parts Stolen . | . . . . Parts Stripped . | . . . . Power Chain Reactions 2 | . 1 1 . Alert | -11 -10 -9 -8 ------- Run | Yrd Mat Mat Mat Maximum Alert Level . | . . . . Low Security (%) 100 | 100 100 100 100 Level 1 . | . . . . Level 2 . | . . . . Level 3 . | . . . . Level 4 . | . . . . Level 5 . | . . . . High Security . | . . . . Max Security . | . . . . Peak Influence 162 | . 113 162 64 Initial 52 | . . 42 52 Average 60 | . 46 75 27 Influence Increases 1276 | . 469 688 119 Destroy 0b10 Robot/C 900 | . 380 440 80 Destroy Leader 180 | . 60 100 20 Successful Hack 72 | . 6 66 . Disable Machine 30 | . . 30 . Destroy Structure 34 | . 8 22 4 Lose Combat Pursuer 60 | . 15 30 15 Influence Decreases 1276 | . 368 663 245 Entered New Map 133 | . . 59 74 Time Decay 915 | . 368 482 65 Lost Part 136 | . . 30 106 Purge Threat 92 | . . 92 . Squads Dispatched 16 | . 4 7 5 Investigation 9 | . 4 5 . Extermination . | . . . . Reinforcement 5 | . . 2 3 Assault . | . . . . Garrison 2 | . . . 2 Intercept . | . . . . Searches Triggered . | . . . . Construction Impeded . | . . . . Haulers Reinforced . | . . . . Active Scanning Responses . | . . . . Cargo Convoy Interrupts . | . . . . Stealth | -11 -10 -9 -8 --------- Run | Yrd Mat Mat Mat Distress Signals 7 | . 3 2 2 Communications Jammed . | . . . . Distress Signals . | . . . . Times Spotted 79 | . 24 38 17 Peak Tracking Total 11 | . 4 5 11 Tactical Retreats 6 | . 1 4 1 ECM-based Alert Blocks 4 | . . 4 . Traps | -11 -10 -9 -8 ------- Run | Yrd Mat Mat Mat Traps Triggered 7 | . 6 1 . Indirectly . | . . . . Trap Hack Attempts . | . . . . Triggered . | . . . . Disarmed . | . . . . Reprogrammed 4 | . . 4 . Reused . | . . . . Traps Extracted . | . . . . Installed . | . . . . Triggered . | . . . . Machines | -11 -10 -9 -8 ---------- Run | Yrd Mat Mat Mat Machines Disabled 2 | . . 2 . Max in Single Turn 1 | . . 1 . Machines Repaired . | . . . . Machines Dismantled . | . . . . Machines Sabotaged . | . . . . Overloaded Fab Kills . | . . . . Hacking | -11 -10 -9 -8 --------- Run | Yrd Mat Mat Mat Machines Accessed 13 | . 5 8 . Terminals 8 | . 3 5 . Fabricators . | . . . . Repair Stations 1 | . . 1 . Recycling Units 2 | . 2 . . Scanalyzers 2 | . . 2 . Garrison Access . | . . . . Total Hacks 50 | . 17 33 . Successful 31 | . 8 23 . Failed 18 | . 9 9 . Catastrophic 2 | . 2 . . Database Lockouts 1 | . . 1 . Manual 4 | . 4 . . Terminals 28 | . 11 17 . Fabricators . | . . . . Repair Stations 4 | . . 4 . Recycling Units 6 | . 6 . . Scanalyzers 12 | . . 12 . Garrison Access . | . . . . Terminal Hacks 16 | . 5 11 . Record 3 | . 3 . . Robot Analysis 2 | . . 2 . Prototype ID Bank 1 | . . 1 . Branch Access Points 1 | . . 1 . Repair Station Index 2 | . 1 1 . Alert Level 2 | . 1 1 . Unreport Threat 1 | . . 1 . Locate Traps 2 | . . 2 . Reprogram Traps 2 | . . 2 . Fabricator Hacks . | . . . . Repair Station Hacks 3 | . . 3 . Scan Component 2 | . . 2 . Repair 1 | . . 1 . Recycling Unit Hacks 3 | . 3 . . Process 1 | . 1 . . Retrieve Components 2 | . 2 . . Scanalyzer 9 | . . 9 . Insert Component 1 | . . 1 . Analyze 1 | . . 1 . Retrieve Study 7 | . . 7 . Garrison Access Hacks . | . . . . Unauthorized Hacks . | . . . . Terminals . | . . . . Fabricators . | . . . . Repair Stations . | . . . . Recycling Units . | . . . . Scanalyzers . | . . . . Garrison Access . | . . . . Data Cores Recovered . | . . . . Used . | . . . . Hacking Detections 10 | . 4 6 . Full Trace Events 6 | . 2 4 . Feedback Events . | . . . . Feedback Blocked . | . . . . Robot Schematics Acquired . | . . . . Robots Built . | . . . . Authchips . | . . . . Time . | . . . . Total Robot Build Rating . | . . . . Part Schematics Acquired 1 | . . 1 . Parts Built . | . . . . Authchips . | . . . . Time . | . . . . Total Part Build Rating . | . . . . Part Studies Acquired 3 | . . 3 . Parts Repaired 1 | . . 1 . Time 16 | . . 16 . Parts Recycled . | . . . . Recycled Matter 236 | . 236 . . Retrieved Matter . | . . . . Retrieved Components . | . . . . Parts Scanalyzed 1 | . . 1 . Part Schematics Acquired 1 | . . 1 . Parts Damaged . | . . . . Bothacking | -11 -10 -9 -8 ------------ Run | Yrd Mat Mat Mat Used RIF Installer . | . . . . Robots Hacked . | . . . . Non-combat . | . . . . Combat . | . . . . Robot Hacks Applied . | . . . . Relay Couplers Released . | . . . . Fabnet Peak Effective % . | . . . . Robots Rewired . | . . . . Allies Hacked . | . . . . Hacks Repelled . | . . . . Allies | -11 -10 -9 -8 -------- Run | Yrd Mat Mat Mat Total Allies . | . . . . Largest Group . | . . . . Highest-Rated Group . | . . . . Highest-Rated Ally . | . . . . Total Orders . | . . . . Ally Attacks . | . . . . Total Damage . | . . . . Kills . | . . . . Allies Corrupted . | . . . . Allies Melted . | . . . . Intel | -11 -10 -9 -8 ------- Run | Yrd Mat Mat Mat Active Infowar (turns) 1017 | . 108 909 . ECM 1017 | . 108 909 . Robot Analysis Total 2 | . . 2 . Derelict Logs Recovered . | . . . . Drone Launches . | . . . . Drone Recoveries . | . . . . Exploration | -11 -10 -9 -8 ------------- Run | Yrd Mat Mat Mat Turns Passed 2674 | 3 1039 1431 201 Spaces Moved 1383 | 3 529 767 84 Core 13 | . . . 13 Treads 908 | . 484 395 29 Legs 462 | 3 45 372 42 Wheels . | . . . . Hover . | . . . . Flight . | . . . . Fastest Speed 100 | 120 120 120 100 Average Speed 150 | 120 156 148 140 Slowest Speed 260 | 120 160 260 200 Overloaded Moves . | . . . . Propulsion Burnouts . | . . . . Robots Hopped . | . . . . Potential Cave-ins . | . . . . Cave-ins Triggered . | . . . . Exploration Rate (%) 33 | 2 67 52 13 Regions Visited 3 Branch Regions . Pre-discovered Areas . | . . . . Known Exits Taken . | . . . . Unknown Exits Taken 3 | 1 1 1 . Scrap Searched . | . . . . Spaces Dug . | . . . . Terrain Destroyed 39 | . 4 33 2 Melee . | . . . . Projectile 2 | . . . 2 AOE 37 | . 4 33 . Terrain Rammed . | . . . . Walls Destroyed . | . . . . Machines Disabled . | . . . . Actions | -11 -10 -9 -8 --------- Run | Yrd Mat Mat Mat Total 1719 | 2 649 948 120 Wait 107 | . 25 82 . Move 1380 | 2 528 766 84 Hop . | . . . . Pick Up 17 | . 11 6 . Fast Attach 8 | . 2 4 2 Attach 8 | . 2 3 3 Detach 1 | . 1 . . Swap 37 | . 16 19 2 Drop 30 | . 16 14 . Fire 131 | . 48 54 29 Melee . | . . . . Ram . | . . . . Kick . | . . . . Crush . | . . . . Escape Stasis . | . . . . Rewire . | . . . . Trap . | . . . . Miscellaneous . | . . . . Route ------- -11/Scrapyard -10/Materials (discovered 3 exits: *Mat x3) -9/Materials (discovered 3 exits: [*Mat] / Min x2) -8/Materials History --------- Turn | Location | Event 1 | -11/Scrapyard | Discovered new exit (range 1) 4 | -11/Scrapyard | Entered Materials 304 | -10/Materials | Build established: Mutant 424 | -10/Materials | Discovered new exit (range 8) 594 | -10/Materials | Discovered new exit (range 14) 960 | -10/Materials | Discovered new exit (range 11) 1043 | -10/Materials | Entered another Materials area 1043 | -9/Materials | Evolved 2 slots: Utility x1, Weapon x1 1054 | -9/Materials | Central database locked down 1282 | -9/Materials | Identified exit to Mines 1317 | -9/Materials | Build established: Tank 1544 | -9/Materials | Repaired Shotgun 2430 | -9/Materials | Discovered new exit (range 12) 2474 | -9/Materials | Entered another Materials area 2474 | -8/Materials | Evolved 2 slots: Power x1, Utility x1 2550 | -8/Materials | Garrison activated, responded to threat 2621 | -8/Materials | Core integrity fell below 50% 2622 | -8/Materials | Lost 8 parts (1p2n2u3w) 2671 | -8/Materials | Core integrity fell below 20% 2675 | -8/Materials | Destroyed by Y-45 Defender with Beam Rifle Last Messages --------------- 02639_ Acquired Ion Cannon. 02640_ S-10 Pest destroyed. 02641_ Lgt. Treads destroyed. 02641_ K-01 Serf collects debris. 02642_ Destroyed Flight Unit. 02645_ K-01 Serf collects debris. 02649_ Lgt. Treads destroyed. 02652_ R-06 Scavenger collects Lgt. Assault Rifle. 02652_ K-01 Serf collects debris. 02654_ Heat Sink destroyed. 02655_ R-06 Scavenger collects Flight Unit. 02656_ K-01 Serf collects debris. 02656_ Penetrated by Slug. 02659_ R-06 Scavenger collects Lgt. Ion Engine. 02660_ U-05 Engineer builds a Wall. 02661_ Penetrated by Slug. 02666_ K-01 Serf destroyed. 02669_ Ion Cannon destroyed. 02672_ K-01 Serf collects debris. Map ----- +----------------------------------------------------+ | ?????????????????????????????????????????????????? | | ?????????????????????????????????????????????????? | | ?????????????????????????????????????????????????? | | ?????????????????????????????????????????? ????? | | ???????????????????????????? ??????????? ????? | | ???????????????????????????# ??????????? ????? | | ???????????????????????????+ #?????????? ????? | | ???????????????????????????# #?????????? ????? | | ???????????????????????????# #?????????? ????? | | ???????????????????????????# #?????????? ????? | | ???????????????????????????# #?????????? ????? | | ???????????????????????????# #?????????? ????? | | ???????????????????????????# #?????????? ????? | | ???????????????????????????# #??????????# #????? | | ???????????????????????????# ############ #????? | | ???????????????????????????# #!! ## #????? | | ???????????????????????????# #! # ###### | | ???????????????????????????# ! ## ## | | ???????????????????????????# # /% | | ???????????????????????????#% !# H #### | | ???????????????????????????# =%/ ##??# | | ???????????????????????????# =# #???# | | ???????????????????????????# # #???## | | ??????????????????????????## ###########????# | | ?????????????# ####### #?????????????# | | ?????????????# t @ #?????????????+ | | ?????????????# Y #?????????????# | | ?????????????# w #?????????????# | | ?????????????# ########### #?????????????# | | ??????????????????????????#######?????????????# | | ??????????????????????????????????????????????# | | ??????????????????????????????????????????????# | | ??????????????????????????????????????????????? | | ?????????????????????????????????????????????????? | | ?????????????????????????????????????????????????? | | ?????????????????????????????????????????????????? | | ?????????????????????????????????????????????????? | | ?????????????????????????????????????????????????? | | ?????????????????????????????????????????????????? | | ?????????????????????????????????????????????????? | | ?????????????????????????????????????????????????? | | ?????????????????????????????????????????????????? | | ?????????????????????????????????????????????????? | | ?????????????????????????????????????????????????? | | ?????????????????????????????????????????????????? | | ?????????????????????????????????????????????????? | | ?????????????????????????????????????????????????? | | ?????????????????????????????????????????????????? | | ?????????????????????????????????????????????????? | | ?????????????????????????????????????????????????? | +----------------------------------------------------+ Best States ------------- Heat Dissipation 51 Energy Generation 14 Energy Capacity 265 Matter Stores 300 Matter Capacity 300 Sight Range 16 Terrain Scan Density 10 ECM Strength 1 Armor Coverage 300 Power Shielding 33 Propulsion Shielding 33 Utility Shielding 66 Evasion (%) 55 Recoil Reduction 2 Item Schematics ----------------- Heat Sink | -9/Materials | Scanalyzed Robot Schematics ------------------ None Fabricated ------------ Nothing Repaired ---------- Shotgun | 73% | -9/Materials Studied --------- Assault Rifle | -9/Materials | Hacked EM Pulse Gun | -9/Materials | Hacked Imp. Ion Engine | -9/Materials | Hacked Alien Tech Used ----------------- None Achievements -------------- None Challenges ------------ None Game ------ Seed TechPointyLegs Manual? 0 Play Time 00:40:38 Cumulative 126.7 hours Start 2026.09.06 @ 05:53:55 End 2026.09.09 @ 05:59:44 Sessions 10 Manual Loads 0 Difficulty Rogue Special Mode None Game No. 76 Rogue 41 Adventurer 0 Explorer 35 Win Type - Total 1 Types 1/0/0/0/0/0/0/0/0/0 Lore% 32 Gallery% 35 Achievement% 28 Wizard Run 0 Options --------- Layout 0 ASCII 1 Keyboard 1 Movement Vi Keybinds 1 Fullscreen 0 Font 20/SmallcapsGlow Map View 50x62 Zoom Use 0% Tactical HUD 1 Map Filters NONE Filters NONE Steam 0 RUN: f4149bc0-3edf-4edd-9c5b-ec0714b2b604